bitfinex-derivatives/quotes_ETHF0:USTF0_20250612
["timestamp","ask_amount","ask_price","bid_price","bid_amount"]
[1749771377387,1.21284323,2650.1,2650.0,27.35822]
[1749771377686,1.21284323,2650.1,2650.0,26.6038]
[1749771378987,1.21284323,2650.1,2650.0,27.35822]
[1749771379682,0.75445,2649.9,2649.8,2.97653836]
[1749771379993,0.75448,2649.8,2649.7,12.97633836]
[1749771380190,0.75448,2649.8,2649.7,9.9998]
[1749771381082,0.75448,2649.8,2649.7,10.75431]
[1749771381283,0.75447,2649.9,2649.8,0.75444]
[1749771381581,0.45845323,2650.1,2650.0,0.75442]
[1749771381882,0.45845323,2650.1,2650.0,27.35722]
[1749771382483,0.45845323,2650.1,2650.0,30.33375836]
[1749771383890,0.45845323,2650.1,2650.0,27.35722]
[1749771384884,1.21284323,2650.1,2650.0,27.35722]
[1749771385786,1.21284323,2650.1,2650.0,28.61792]
[1749771385988,1.21284323,2650.1,2650.0,27.8635]
[1749771386391,1.21284323,2650.1,2650.0,23.395]
[1749771387189,0.75442,2650.0,2649.9,23.394]
[1749771387893,0.75442,2650.0,2649.9,25.40915]
[1749771388080,0.75442,2650.0,2649.9,24.6547]
[1749771388281,0.75442,2650.0,2649.9,25.40915]
[1749771388688,0.75442,2650.0,2649.9,24.6547]
[1749771389090,0.75442,2650.0,2649.9,25.40915]
[1749771389797,1.20722,2650.0,2649.9,25.40915]
[1749771391598,0.4528,2650.0,2649.9,25.40915]
[1749771392386,1.20722,2650.0,2649.9,25.40915]
[1749771392686,0.75448,2649.8,2649.7,3.8348]
[1749771392893,0.75448,2649.8,2649.7,34.6256]
[1749771394086,0.75448,2649.8,2649.7,35.38011]
[1749771394685,0.75448,2649.8,2649.7,34.6256]
[1749771397892,0.75448,2649.8,2649.7,11.2316]
[1749771398100,0.75448,2649.8,2649.7,34.6256]
[1749771400505,0.75448,2649.8,2649.7,11.2316]
[1749771400801,0.75448,2649.8,2649.7,34.6246]
[1749771402502,0.75448,2649.8,2649.7,35.37911]
[1749771402704,1.20725,2650.0,2649.9,0.75445]
[1749771402893,0.75448,2649.8,2649.7,11.98606]
[1749771403099,0.75448,2649.8,2649.7,34.14626]
[1749771405707,0.75448,2649.8,2649.7,9.9988]
[1749771406002,0.75448,2649.8,2649.7,30.183]
[1749771406202,0.75457,2649.5,2649.4,6.93428853]
[1749771406403,0.75456,2649.6,2649.4,29.557]
[1749771406608,0.75454,2649.7,2649.6,0.75451]
[1749771406797,0.75454,2649.7,2649.6,24.14651]
[1749771407004,0.75454,2649.7,2649.6,23.392]
[1749771407307,0.75454,2649.7,2649.6,24.14654]
[1749771407804,0.75449,2649.9,2649.8,0.75446]
[1749771408109,0.75449,2649.9,2649.8,24.14646]
[1749771408303,0.75449,2649.9,2649.8,23.392]
[1749771408707,0.75449,2649.9,2649.8,24.14649]
[1749771408904,0.75449,2649.9,2649.8,24.81199]
[1749771411012,0.75449,2649.9,2649.8,24.0575]
[1749771411504,0.75449,2649.8,2649.7,0.6399]
[1749771411705,0.75454,2649.7,2649.5,4.34568853]
[1749771411907,0.75454,2649.7,2649.6,24.14453]
[1749771412108,0.75451,2649.8,2649.7,0.75446]
[1749771412313,0.75448,2649.9,2649.8,0.75446]
[1749771414111,1.20725,2650.0,2649.9,0.75446]
[1749771414311,1.20725,2650.0,2649.9,24.14446]
[1749771415506,1.20725,2650.0,2649.9,23.39]
[1749771416110,0.4528,2650.0,2649.9,24.14446]
[1749771416410,0.4528,2650.0,2649.9,33.51226]
[1749771416609,0.4528,2650.0,2649.9,37.23874853]
[1749771416805,0.00565323,2650.1,2649.9,37.23874853]
[1749771417007,3.2078,2651.1,2650.7,0.75423]
[1749771417212,3.2078,2651.1,2650.1,1.88601]
[1749771417213,3.96182,2651.5,2651.4,0.75403]
[1749771417518,0.75406,2651.3,2651.2,23.389]
[1749771418216,0.75406,2651.3,2651.2,24.14309]
[1749771418514,0.75406,2651.3,2651.2,24.7199]
[1749771418906,3.96746323,2651.5,2651.4,0.75403]
[1749771419105,3.21345323,2651.5,2651.4,0.75403]
[1749771420119,3.96745323,2651.5,2651.4,0.75403]
[1749771420314,0.75965323,2651.5,2651.4,0.75403]
[1749771420610,0.75403,2651.4,2651.3,1.3309]
[1749771420914,0.75403,2651.4,2651.3,30.8739]
[1749771421110,0.75403,2651.4,2651.3,31.62796]
[1749771421309,0.00565323,2651.5,2651.0,0.61505323]
[1749771421619,0.75409,2651.2,2651.1,30.29612]
[1749771421917,0.6351,2651.4,2651.1,29.542]
[1749771422115,0.75405,2651.4,2651.2,2.00727]
[1749771422317,0.75405,2651.4,2651.3,2.05216]
[1749771422517,0.00565323,2651.5,2651.3,2.05216]
[1749771422719,0.00565323,2651.5,2651.4,0.75403]
[1749771423013,0.00565323,2651.5,2651.4,25.43213]
[1749771424512,3.2078,2652.3,2652.2,0.7538]
[1749771424709,0.75383,2652.1,2652.0,30.29185]
[1749771424908,0.75383,2652.1,2652.0,30.28885]
[1749771425420,0.75382,2652.2,2652.1,0.75382]
[1749771425611,0.75382,2652.2,2652.1,1.32]
[1749771426111,3.21345323,2652.3,2652.2,0.7538]
[1749771426509,3.96723323,2652.3,2652.2,29.535]
[1749771426713,1.88452,2652.2,2651.6,3.2078]
[1749771427016,0.75396,2651.7,2651.6,0.75397]
[1749771427320,0.75393,2651.8,2651.7,6.158]
[1749771427707,1.88494,2651.7,2651.1,0.75411]
[1749771427913,0.75406,2651.3,2651.2,6.157]
[1749771428115,4.8774,2651.7,2651.2,30.28407]
[1749771428314,0.75406,2651.3,2651.2,29.53]
[1749771428518,0.75406,2651.3,2651.2,30.28409]
[1749771428717,0.75406,2651.3,2651.2,29.53]
[1749771428913,0.75406,2651.3,2651.2,6.157]
[1749771429413,3.8599,2651.7,2651.2,6.157]
[1749771429716,5.74482,2651.7,2651.2,6.157]
[1749771429917,0.75406,2651.3,2651.2,6.91107]
[1749771430120,0.75405,2651.4,2651.3,0.75405]
[1749771430319,0.75401,2651.5,2651.2,6.157]
[1749771430622,5.09246,2652.0,2651.3,27.8481]
[1749771430814,0.7539,2651.9,2651.8,0.7539]
[1749771431117,0.75392,2651.8,2651.7,23.373]
[1749771432515,0.75392,2651.8,2651.7,24.12695]
[1749771432818,0.75392,2651.8,2651.7,23.373]
[1749771433209,0.75395,2651.7,2651.6,6.157]
[1749771433412,1.35885,2651.7,2651.6,6.157]
[1749771433608,0.75393,2651.8,2651.6,6.157]
[1749771433821,0.75393,2651.8,2651.7,0.7539]
[1749771434217,0.75395,2651.7,2651.6,6.157]
[1749771435824,0.75395,2651.7,2651.6,6.91097]
[1749771436015,0.75393,2651.8,2651.7,0.75391]
[1749771436219,0.75395,2651.7,2651.6,6.91095]
[1749771436418,0.75395,2651.7,2651.6,6.157]
[1749771437918,0.75393,2651.9,2651.8,0.75389]
[1749771438123,3.2078,2652.0,2651.9,0.75389]
[1749771438326,3.2078,2652.0,2651.8,0.7539]
[1749771438516,5.09248,2652.0,2651.7,23.37]
[1749771438723,0.75392,2651.8,2651.7,23.37]
[1749771439319,1.88487,2651.7,2651.3,6.7945]
[1749771439522,0.75403,2651.4,2651.3,6.156]
[1749771442325,0.75409,2651.2,2651.1,0.7541]
[1749771442531,0.6343,2651.5,2651.1,3.18548]
[1749771442722,0.75409,2651.3,2651.2,0.75408]
[1749771443820,0.75409,2651.2,2651.1,2.0543]
[1749771444222,0.75407,2651.4,2651.3,0.75404]
[1749771444431,0.75409,2651.3,2651.2,0.75408]
[1749771446022,0.75405,2651.4,2651.3,0.75403]
[1749771446424,0.75409,2651.3,2651.2,0.75408]
[1749771446624,0.75409,2651.3,2651.2,2.03988]
[1749771447221,1.38832,2651.5,2651.4,0.75403]
[1749771447420,0.75403,2651.4,2651.3,1.2937]
[1749771448834,0.75402,2651.5,2651.4,0.754]
[1749771449036,0.75402,2651.5,2651.4,1.3989]
[1749771449336,3.2078,2651.6,2651.5,0.754]
[1749771449937,3.96177,2651.6,2651.5,2.056]
[1749771450134,3.96177,2651.6,2651.5,1.302]
[1749771450534,3.96177,2651.6,2651.5,2.056]
[1749771451529,3.96177,2651.6,2651.5,1.302]
[1749771451836,3.2078,2651.6,2651.4,0.6449]
[1749771452134,1.88468,2652.0,2651.6,0.75395]
[1749771452135,0.75398,2651.7,2651.6,0.75395]
[1749771452531,0.6086,2652.0,2651.6,1.88495]
[1749771452725,0.75392,2651.9,2651.8,0.75389]
[1749771453127,0.75392,2651.9,2651.8,1.38219]
[1749771454941,0.75392,2651.9,2651.8,1.38222]
[1749771455131,0.75392,2651.9,2651.8,1.8868]
[1749771455538,0.75392,2651.9,2651.8,2.64072]
[1749771455738,0.75392,2651.9,2651.8,1.8868]
[1749771456538,0.75392,2651.9,2651.8,2.64072]
[1749771458139,0.75392,2651.9,2651.8,1.2585]
[1749771458335,0.75392,2651.8,2651.7,2.97939524]
[1749771458542,5.69524,2651.8,2651.4,2.97939524]
[1749771458739,0.75401,2651.5,2651.4,4.22019524]
[1749771460037,0.75401,2651.5,2651.4,1.2408]
[1749771460443,0.75409,2651.2,2651.1,9.13139524]
[1749771460644,0.75409,2651.2,2651.1,6.152]
[1749771460940,0.75409,2651.2,2651.1,8.18232]
[1749771461143,3.8602,2651.5,2651.4,0.75403]
[1749771461144,3.96185,2651.5,2651.4,0.75403]
[1749771461341,5.09257,2651.9,2651.2,4.25559524]
[1749771461542,0.75404,2651.5,2651.4,0.754]
[1749771461740,0.75404,2651.5,2651.4,4.90869524]
[1749771462038,0.75404,2651.5,2651.4,1.2762]
[1749771462245,0.75404,2651.5,2651.4,1.9419]
[1749771462535,0.75404,2651.5,2651.4,5.67532524]
[1749771462740,0.75399,2651.6,2651.5,0.75396]
[1749771462939,0.75397,2651.7,2651.6,0.75394]
[1749771463533,3.2078,2651.9,2651.5,4.24769524]
[1749771463534,0.75398,2651.6,2651.5,5.00168524]
[1749771463936,3.2078,2651.9,2651.5,4.24769524]
[1749771464135,0.75398,2651.6,2651.5,4.24769524]
[1749771464651,0.75398,2651.6,2651.5,5.00170524]
[1749771465351,0.75398,2651.7,2651.6,0.75395]
[1749771465551,0.75398,2651.6,2651.5,4.24769524]
[1749771465745,0.75401,2651.5,2651.4,27.00909524]
[1749771466046,0.75401,2651.5,2651.4,28.27269524]
[1749771466443,0.75401,2651.5,2651.4,29.02672524]
[1749771467945,0.75399,2651.7,2651.6,0.75395]
[1749771468141,0.75401,2651.6,2651.5,3.73370369]
[1749771468446,0.75401,2651.6,2651.5,5.05300369]
[1749771469741,0.75401,2651.6,2651.5,4.29901369]
[1749771470039,0.75401,2651.6,2651.5,5.05302369]
[1749771470240,0.75401,2651.6,2651.5,4.29901369]
[1749771470544,5.09278,2651.6,2651.2,3.63281369]
[1749771470744,0.75406,2651.3,2651.2,26.34271369]
[1749771470945,0.75406,2651.3,2651.2,23.363]
[1749771471652,0.75406,2651.3,2651.2,2.97971369]
[1749771471948,0.75409,2651.2,2651.1,3.62881369]
[1749771472153,0.75409,2651.2,2651.1,33.14281369]
[1749771472345,0.75409,2651.2,2651.1,33.89693369]
[1749771473450,0.75409,2651.2,2651.1,33.89793369]
[1749771475353,0.75408,2651.4,2651.3,0.75403]
[1749771475555,0.75408,2651.4,2651.3,24.11703]
[1749771476560,0.75408,2651.4,2651.3,23.363]
[1749771476863,0.75403,2651.5,2651.4,0.75401]
[1749771477254,0.75403,2651.5,2651.4,1.97831]
[1749771477457,0.75398,2651.7,2651.6,0.75394]
[1749771478164,0.75398,2651.7,2651.6,1.97824]
[1749771478865,0.75393,2651.8,2651.7,0.75392]
[1749771479253,0.75395,2651.7,2651.6,1.2243]
[1749771480157,0.75395,2651.7,2651.6,1.97828]
[1749771480456,0.75395,2651.7,2651.6,1.2243]
[1749771480657,0.75395,2651.7,2651.6,1.97828]
[1749771481560,0.75395,2651.7,2651.6,1.2243]
[1749771482056,3.2078,2651.9,2651.8,0.75392]
[1749771482447,3.2078,2651.9,2651.8,3.73363369]
[1749771482652,1.2065,2652.1,2652.0,0.75386]
[1749771482852,1.2065,2652.1,2652.0,33.23791566]
[1749771483061,0.7541,2652.1,2652.0,30.26386]
[1749771483257,0.75384,2652.1,2652.0,34.37216525]
[1749771483457,0.75389,2651.9,2651.8,3.72688525]
[1749771483659,3.21345323,2652.3,2651.9,1.88472]
[1749771483962,0.75384,2652.2,2652.1,0.75381]
[1749771484158,0.75384,2652.1,2652.0,30.7527]
[1749771484457,0.75386,2652.0,2651.9,6.149]
[1749771484657,0.75386,2652.0,2651.9,29.509]
[1749771485459,0.75386,2652.0,2651.9,30.26289]
[1749771485659,0.75386,2652.1,2652.0,0.75384]
[1749771485963,0.75386,2652.1,2652.0,1.2427]
[1749771486561,0.75386,2652.1,2652.0,1.99656]
[1749771486860,0.75386,2652.1,2652.0,1.2427]
[1749771487060,0.75386,2652.1,2652.0,1.99656]
[1749771487250,0.75386,2652.1,2652.0,1.2427]
[1749771487757,0.6374,2652.2,2652.1,0.75381]
[1749771487758,0.75383,2652.2,2652.1,0.75381]
[1749771488162,0.75383,2652.2,2652.1,24.76681]
[1749771488360,0.75383,2652.2,2652.1,24.013]
[1749771489055,0.75383,2652.2,2652.1,24.76684]
[1749771489555,0.75383,2652.2,2652.1,24.013]
[1749771490062,0.75383,2652.2,2652.1,23.358]
[1749771490258,0.75384,2652.1,2652.0,1.2427]
[1749771490462,0.75384,2652.1,2651.9,23.358]
[1749771490463,0.75386,2652.0,2651.9,23.358]
[1749771490762,0.75386,2652.0,2651.9,24.11189]
[1749771490960,0.75386,2652.0,2651.9,25.38649]
[1749771491864,0.75389,2651.9,2651.8,0.655]
[1749771492260,0.75389,2651.9,2651.8,1.8569]
[1749771494959,0.75395,2651.7,2651.6,6.148]
[1749771495159,0.75395,2651.7,2651.6,29.504]
[1749771495359,0.75395,2651.7,2651.6,31.49068]
[1749771495664,0.75388,2652.0,2651.9,0.75389]
[1749771496260,3.21345323,2652.3,2651.8,3.7475]
[1749771496466,3.21345323,2652.3,2652.2,0.75381]
[1749771496656,0.75364,2652.8,2652.4,1.88436]
[1749771496861,0.75369,2652.6,2652.5,29.17921]
[1749771497060,0.75368,2652.7,2652.6,0.75368]
[1749771497257,0.75369,2652.6,2652.5,25.9714]
[1749771497768,0.75931323,2652.8,2652.7,0.75365]
[1749771499458,0.75368,2652.7,2652.6,0.75367]
[1749771499866,0.75368,2652.7,2652.6,6.90067]
[1749771501066,0.75931323,2652.8,2652.7,0.75366]
[1749771501269,0.75931323,2652.8,2652.7,1.8763]
[1749771501769,0.75369,2652.6,2652.5,3.8378]
[1749771501967,0.75369,2652.6,2652.5,0.63]
[1749771502158,0.75369,2652.6,2652.5,1.8505]
[1749771504568,0.75369,2652.6,2652.3,30.25641323]
[1749771504569,0.75375,2652.4,2652.3,6.15265323]
[1749771504773,0.75375,2652.4,2652.3,29.50265323]
[1749771504973,0.75375,2652.4,2652.3,0.00565323]
[1749771505570,0.75375,2652.4,2652.3,2.03173323]
[1749771505774,0.75375,2652.4,2652.3,1.27795323]
[1749771506273,0.75375,2652.4,2652.3,0.00565323]
[1749771506776,3.96155,2652.4,2652.3,0.00565323]
[1749771507176,0.75389,2651.9,2651.8,3.8624]
[1749771507371,0.75389,2651.9,2651.8,5.1347]
[1749771510674,0.75389,2651.9,2651.8,3.2078]
[1749771510877,0.75395,2651.7,2651.6,6.15265323]
[1749771511377,0.75395,2651.7,2651.6,7.46005323]
[1749771515678,0.75395,2651.7,2651.6,8.21403323]
[1749771515980,0.75395,2651.7,2651.6,7.46005323]
[1749771517878,0.75395,2651.7,2651.6,1.31305323]
[1749771518779,3.96175,2651.7,2651.6,1.31305323]
[1749771518984,3.96175,2651.7,2651.6,0.00565323]
[1749771520676,4.25917867,2651.7,2651.6,0.00565323]
[1749771520876,3.96175,2651.7,2651.6,0.00565323]
[1749771527987,0.75395,2651.7,2651.6,1.30695323]
[1749771528185,0.75395,2651.7,2651.6,1.95565323]
[1749771530296,0.75393,2651.8,2651.7,0.75392]
[1749771530496,0.7539,2652.0,2651.6,3.84060323]
[1749771530700,6.145,2652.1,2651.7,6.67477092]
[1749771530901,0.75389,2652.0,2651.9,0.75386]
[1749771531202,0.75389,2652.0,2651.9,1.99776]
[1749771531504,0.75389,2652.0,2651.9,1.2439]
[1749771532698,0.75389,2652.0,2651.9,1.99779]
[1749771532898,0.75385,2652.1,2652.0,0.75383]
[1749771533101,0.75385,2652.1,2652.0,1.96943]
[1749771533403,0.75385,2652.1,2652.0,1.2156]
[1749771535104,0.75385,2652.1,2652.0,3.43867092]
[1749771537909,0.75385,2652.1,2652.0,4.19253092]
[1749771538210,0.75385,2652.1,2652.0,3.43867092]
[1749771539012,0.75386,2652.0,2651.9,2.22307092]
[1749771539208,0.75386,2652.0,2651.7,2.22307092]
[1749771539209,0.75392,2651.8,2651.7,2.22307092]
[1749771539517,0.75395,2651.7,2651.6,2.22872415]
[1749771540414,0.75395,2651.7,2651.6,0.00565323]
[1749771540614,6.14,2652.1,2651.6,0.00565323]
[1749771540808,3.2078,2652.3,2652.2,0.75381]
[1749771541015,0.6356,2652.6,2651.7,3.76973]
[1749771541016,10.10148,2652.7,2652.6,0.75369]
[1749771541205,3.2078,2652.7,2652.6,2.98188864]
[1749771541414,3.2078,2652.7,2652.6,0.75369]
[1749771541613,3.96146,2652.7,2652.6,0.75369]
[1749771542011,3.96146,2652.7,2652.6,2.98129869]
[1749771542305,3.96146,2652.7,2652.6,2.22760869]
[1749771542717,0.75366,2652.7,2652.6,2.22760869]
[1749771542913,0.00565323,2652.8,2652.7,0.75366]
[1749771543111,0.75352,2653.3,2653.1,0.75354]
[1749771543313,3.2078,2653.4,2653.2,1.256]
[1749771543611,0.75361,2652.9,2652.8,2.22527795]
[1749771543816,0.75364,2652.8,2652.7,2.85627795]
[1749771544120,0.75364,2652.8,2652.7,0.631]
[1749771544415,0.75366,2652.7,2652.6,2.22527795]
[1749771544617,0.75366,2652.7,2652.5,0.00565323]
[1749771544618,0.75369,2652.6,2652.5,0.00565323]
[1749771544814,3.96149,2652.6,2652.5,0.00565323]
[1749771548015,0.75369,2652.6,2652.5,0.00565323]
[1749771550616,0.75367,2652.7,2652.6,0.75367]
[1749771550822,0.75369,2652.6,2652.5,0.75936323]
[1749771551022,3.2078,2652.9,2652.5,0.75936323]
[1749771551023,3.96142,2652.9,2652.8,0.75364]
[1749771551216,3.96142,2652.9,2652.5,2.23093118]
[1749771551217,0.75365,2652.8,2652.7,0.75365]
[1749771551418,0.75366,2652.7,2652.6,2.22527795]
[1749771551722,0.75369,2652.6,2652.5,6.14465323]
[1749771552113,0.75369,2652.6,2652.5,0.00565323]
[1749771553628,0.75369,2652.6,2652.5,0.75937323]
[1749771553816,0.75369,2652.6,2652.5,2.98465118]
[1749771554218,0.75369,2652.6,2652.5,2.23093118]
[1749771554616,0.75368,2652.7,2652.6,0.75367]
[1749771554818,0.75368,2652.7,2652.6,2.97896795]
[1749771555021,0.75365,2652.8,2652.7,0.75364]
[1749771555317,0.75365,2652.8,2652.7,2.97891795]
[1749771555621,0.75365,2652.8,2652.7,0.75364]
[1749771555923,0.75366,2652.7,2652.6,4.27544795]
[1749771556127,0.75366,2652.7,2652.6,2.05017]
[1749771556824,0.75366,2652.7,2652.6,4.27682508]
[1749771557021,3.2078,2652.9,2652.8,0.75364]
[1749771557226,0.75361,2652.9,2652.8,0.75364]
[1749771557430,0.75364,2652.8,2652.7,8.11515]
[1749771557725,0.75364,2652.8,2652.7,6.89165]
[1749771557928,0.75364,2652.8,2652.7,11.89165]
[1749771558529,0.75364,2652.8,2652.7,6.89165]
[1749771558831,0.75363,2652.9,2652.8,0.75361]
[1749771559028,0.75924323,2653.0,2652.9,0.75361]
[1749771559236,0.75364,2652.8,2652.7,2.96703727]
[1749771559529,0.75369,2652.6,2652.5,12.3184905]
[1749771559916,0.75369,2652.6,2652.5,0.00565323]
[1749771560327,0.75369,2652.6,2652.5,0.75937323]
[1749771561321,0.75369,2652.6,2652.5,0.00565323]
[1749771562427,3.96149,2652.6,2652.5,0.00565323]
[1749771563627,4.97779,2652.6,2652.5,0.00565323]
[1749771564019,9.97779,2652.6,2652.5,3.23e-06]
[1749771568538,0.75389,2651.9,2651.8,2.23188365]
[1749771570731,0.75392,2651.8,2651.7,2.83888365]
[1749771573238,0.75392,2651.8,2651.7,3.48058365]
[1749771573543,3.2078,2652.1,2652.0,0.75386]
[1749771573734,0.75388,2652.0,2651.9,2.98425515]
[1749771573934,0.75388,2652.0,2651.9,2.23038515]
[1749771574640,0.75392,2651.8,2651.7,11.10567727]
[1749771575040,0.75392,2651.8,2651.7,16.10567727]
[1749771575539,3.2078,2652.4,2651.7,12.3847]
[1749771575843,0.75386,2652.1,2652.0,0.75385]
[1749771576140,5.09219,2652.4,2651.9,6.17483727]
[1749771576141,0.75386,2652.0,2651.9,6.92871727]
[1749771576538,0.75386,2652.0,2651.9,11.93322649]
[1749771577137,0.75386,2652.1,2652.0,0.75382]
[1749771577445,0.75386,2652.1,2652.0,13.20612]
[1749771578040,0.75386,2652.1,2652.0,12.4523]
[1749771578546,0.75386,2652.1,2652.0,7.4523]
[1749771579243,0.75386,2652.1,2652.0,8.20616]
[1749771579839,0.75383,2652.2,2652.1,0.75379]
[1749771580349,0.75384,2652.1,2652.0,11.17768649]
[1749771581245,0.75384,2652.1,2652.0,10.42384649]
[1749771581546,0.75384,2652.1,2652.0,11.17770649]
[1749771583848,1.88421,2652.7,2652.2,1.88449]
[1749771584044,0.75372,2652.6,2652.5,0.75369]
[1749771584351,0.75372,2652.6,2652.5,4.19358583]
[1749771584552,0.75372,2652.6,2652.5,1.96459]
[1749771584765,0.75369,2652.7,2652.6,0.75366]
[1749771584944,4.68139,2652.8,2652.7,0.75366]
[1749771585147,4.68139,2652.8,2652.7,2.98168634]
[1749771585658,4.68139,2652.8,2652.7,2.22802634]
[1749771586452,5.13369,2652.8,2652.7,2.22802634]
[1749771587053,5.13369,2652.8,2652.7,3.44032634]
[1749771588451,5.13369,2652.8,2652.4,6.17979444]
[1749771588452,0.75366,2652.7,2652.6,2.22802634]
[1749771589746,0.75369,2652.6,2652.5,2.22802634]
[1749771589951,0.75369,2652.6,2652.5,3.48402634]
[1749771590555,0.75369,2652.6,2652.5,1.256]
[1749771590751,5.13365,2652.8,2652.7,0.75366]
[1749771591058,0.75369,2652.7,2652.6,0.75368]
[1749771591253,0.75369,2652.6,2652.5,3.72568444]
[1749771591558,0.75369,2652.6,2652.5,0.75369]
[1749771592860,0.75368,2652.7,2652.6,0.75366]
[1749771595059,0.75369,2652.6,2652.5,3.72570444]
[1749771595257,0.75369,2652.6,2652.5,2.97199444]
[1749771595559,0.75372,2652.5,2652.4,13.06752444]
[1749771595756,0.75372,2652.5,2652.4,13.06550087]
[1749771596055,0.75372,2652.5,2652.4,10.09553]
[1749771596261,0.75372,2652.5,2652.4,13.0643498]
[1749771596653,0.75372,2652.5,2652.4,10.09553]
[1749771596853,0.75372,2652.5,2652.4,13.06400351]
[1749771597661,0.75372,2652.5,2652.4,13.06343449]
[1749771597962,0.75372,2652.5,2652.4,12.30970449]
[1749771598158,0.75372,2652.5,2652.4,13.06345449]
[1749771598354,0.75372,2652.5,2652.4,10.09555]
[1749771599458,0.75372,2652.5,2652.4,10.71445]
[1749771599651,0.75372,2652.5,2652.4,13.68235449]
[1749771600462,1.88417,2652.7,2652.6,0.75366]
[1749771600463,0.7537,2652.7,2652.6,0.75366]
[1749771600858,1.20596,2652.8,2652.7,0.75366]
[1749771601055,1.20596,2652.8,2652.7,2.97999705]
[1749771601863,0.75366,2652.7,2652.6,0.75368]
[1749771602359,0.75372,2652.5,2652.4,36.25560449]
[1749771602569,0.75372,2652.5,2652.4,37.00935449]
[1749771603265,0.75372,2652.5,2652.4,12.92860449]
[1749771603563,0.75372,2652.5,2652.3,1.41465]
[1749771603564,0.75375,2652.4,2652.3,2.96790449]
[1749771603758,0.75381,2652.2,2652.1,2.96790449]
[1749771603957,0.75384,2652.1,2652.0,2.96790449]
[1749771604163,0.75384,2652.1,2652.0,3.72176449]
[1749771604365,0.75384,2652.1,2652.0,2.96790449]
[1749771604561,0.75384,2652.1,2652.0,3.72176449]
[1749771604959,0.75384,2652.1,2652.0,2.96790449]
[1749771605363,0.75386,2652.0,2651.9,2.96790449]
[1749771605663,0.75389,2651.9,2651.8,12.95220449]
[1749771605963,0.75389,2651.9,2651.8,12.30670449]
[1749771606166,0.75392,2651.8,2651.7,2.96790449]
[1749771606363,0.75395,2651.7,2651.6,2.97355772]
[1749771606662,0.75395,2651.7,2651.6,0.00565323]
[1749771609871,0.75395,2651.7,2651.6,0.75963323]
[1749771610065,3.96172,2651.9,2651.6,0.00565323]
[1749771610259,0.6469,2652.0,2651.6,0.00565323]
[1749771610260,0.7539,2652.0,2651.9,0.75387]
[1749771610469,0.75392,2651.9,2651.8,3.96171]
[1749771611168,0.75392,2651.9,2651.8,4.4331]
[1749771611376,0.75392,2651.9,2651.8,5.18702]
[1749771611872,0.4524,2652.0,2651.9,0.75389]
[1749771612170,1.20626,2652.0,2651.9,2.62789]
[1749771613166,0.4524,2652.0,2651.9,2.62789]
[1749771613567,1.20626,2652.0,2651.9,2.62789]
[1749771614071,0.4524,2652.0,2651.9,2.62789]
[1749771614373,1.20626,2652.0,2651.9,2.62789]
[1749771615478,1.20626,2652.0,2651.9,1.874]
[1749771615863,1.20626,2652.0,2651.9,2.62789]
[1749771616068,1.20626,2652.0,2651.9,1.874]
[1749771616876,1.20626,2652.0,2651.9,2.62789]
[1749771617171,0.4524,2652.0,2651.9,2.62789]
[1749771617375,0.4524,2652.0,2651.9,5.59579449]
[1749771618076,0.4524,2652.0,2651.9,2.62789]
[1749771620878,0.75372,2652.6,2652.5,0.75369]
[1749771621071,0.75372,2652.6,2652.5,30.21169]
[1749771621579,0.75372,2652.6,2652.5,32.08589]
[1749771622073,0.75372,2652.6,2652.5,32.73099]
[1749771622783,0.75368,2652.7,2652.6,0.75364]
[1749771623180,0.00565323,2653.0,2652.9,0.75361]
[1749771623380,9.3398,2653.4,2652.9,0.75361]
[1749771623381,3.2078,2653.4,2653.3,0.75349]
[1749771623575,0.75347,2653.4,2653.3,2.21875187]
[1749771623779,0.75347,2653.4,2653.3,2.97224187]
[1749771623982,0.75347,2653.4,2653.3,4.24674187]
[1749771624182,0.75347,2653.4,2653.3,3.49325187]
[1749771626681,0.75347,2653.4,2653.3,1.2745]
[1749771626883,0.75347,2653.4,2653.3,2.02799]
[1749771627085,0.75347,2653.4,2653.3,3.49325187]
[1749771627283,0.7194,2653.5,2653.4,0.75347]
[1749771627487,1.47284,2653.5,2653.4,4.19002187]
[1749771628083,0.75347,2653.4,2653.3,8.34975187]
[1749771628284,0.75347,2653.4,2653.3,31.66975187]
[1749771629382,0.75347,2653.4,2653.3,32.89455187]
[1749771629582,0.75347,2653.4,2653.3,1.2278]
[1749771629984,0.75349,2653.3,2653.2,11.55255187]
[1749771630183,0.75349,2653.3,2653.2,26.5248]
[1749771631185,0.75348,2653.4,2653.3,0.75347]
[1749771631690,0.75348,2653.4,2653.3,1.98127]
[1749771632493,0.75348,2653.4,2653.3,1.2278]
[1749771632986,0.75348,2653.4,2653.3,30.6688]
[1749771633182,0.75348,2653.4,2653.3,24.5428]
[1749771634190,0.7194,2653.5,2653.3,24.5428]
[1749771634490,1.47286,2653.5,2653.4,0.75347]
[1749771634688,1.47286,2653.5,2653.4,1.99197]
[1749771635491,0.7194,2653.5,2653.4,1.99197]
[1749771636799,0.00565323,2653.6,2653.5,0.75344]
[1749771636992,0.00565323,2653.6,2653.5,29.11424]
[1749771637190,3.2078,2654.2,2654.1,0.75327]
[1749771637995,0.75327,2654.1,2654.0,23.9272]
[1749771638597,0.75327,2654.1,2654.0,23.313]
[1749771639295,0.75332,2653.9,2653.8,9.3328]
[1749771639491,0.75332,2653.9,2653.8,32.6428]
[1749771639698,0.00565323,2654.3,2653.8,32.6428]
[1749771639891,0.7191,2654.0,2653.9,1.97912]
[1749771640199,0.00565323,2654.3,2654.2,0.75324]
[1749771640499,0.00565323,2654.3,2654.2,35.60441596]